bitfinex/quotes_SOLUSD_20250728
["timestamp","ask_amount","ask_price","bid_price","bid_amount"]
[1753742845126,5.4618265,183.09,183.06,7.10963987]
[1753742845422,0.69,183.08,183.05,7.10963987]
[1753742846288,1.23522654,183.07,183.03,7.10963987]
[1753742846512,7.79963987,183.06,183.01,7.10963987]
[1753742846713,0.54522654,183.05,183.01,7.10963987]
[1753742846923,6.00839503,183.05,183.01,7.10963987]
[1753742847125,0.69,183.04,183.0,46.52963987]
[1753742847488,0.69,183.03,183.0,46.52963987]
[1753742847889,0.69,183.03,183.0,39.42]
[1753742848118,0.69,183.03,183.0,46.52963987]
[1753742848500,6.00839503,183.05,183.01,7.10963987]
[1753742848712,0.69,183.04,183.02,7.10963987]
[1753742849210,0.54522654,183.07,183.03,7.10963987]
[1753742849612,8.08396301,183.06,183.0,39.42]
[1753742849785,7.10963987,183.04,183.0,39.42]
[1753742850126,1.23522654,183.03,182.99,7.10963987]
[1753742850427,0.82954968,183.03,183.0,7.10963987]
[1753742850732,1.51954968,183.03,183.0,7.10963987]
[1753742851217,6.98314183,183.03,183.0,7.10963987]
[1753742851415,0.69,183.02,182.98,7.10963987]
[1753742851595,0.54522654,183.02,182.99,7.10963987]
[1753742851990,6.29314183,183.03,182.99,7.10963987]
[1753742852188,26.54522654,183.04,183.0,7.10963987]
[1753742852411,6.29294783,183.04,183.0,7.10963987]
[1753742852721,6.98294783,183.04,183.0,7.10963987]
[1753742853717,0.82954968,183.05,183.02,7.10963987]
[1753742854220,26.0,183.06,183.03,7.10963987]
[1753742854519,26.0,183.06,183.04,7.10963987]
[1753742854691,6.69764278,183.07,183.04,7.10963987]
[1753742856114,1.51954968,183.07,183.04,7.10963987]
[1753742857198,149.0,183.08,183.06,7.10963987]
[1753742857402,149.0,183.08,183.07,7.10963987]
[1753742857946,39.45,183.13,183.07,7.10963987]
[1753742858234,6.00614858,183.12,183.1,7.10963987]
[1753742858409,6.69614858,183.12,183.1,7.10963987]
[1753742859028,6.69614858,183.12,183.1,4.35491275]
[1753742859405,0.54522654,183.12,183.1,4.35491275]
[1753742859717,0.82954968,183.12,183.1,4.35491275]
[1753742859916,1.51954968,183.12,183.1,4.35491275]
[1753742860423,0.54522654,183.12,183.1,4.35491275]
[1753742860633,0.03,183.13,183.11,4.35491275]
[1753742860834,0.03,183.13,183.12,7.09528587]
[1753742860998,0.72,183.13,183.1,7.09528587]
[1753742861512,1.51954968,183.12,183.08,7.09528587]
[1753742861715,0.69,183.11,183.08,7.09528587]
[1753742862016,1.23522654,183.1,183.06,7.09528587]
[1753742862326,0.69,183.09,183.06,7.09528587]
[1753742862908,0.69,183.08,183.06,7.09528587]
[1753742863097,6.00674069,183.1,183.06,7.09528587]
[1753742863098,6.69674069,183.1,183.06,7.09528587]
[1753742863294,0.97432314,183.09,183.05,7.09528587]
[1753742863527,1.23522654,183.08,183.05,7.09528587]
[1753742863828,0.69,183.07,183.05,7.09528587]
[1753742864400,0.69,183.07,183.04,46.51528587]
[1753742864623,1.23522654,183.07,183.04,46.51528587]
[1753742865206,0.69,183.07,183.04,7.09528587]
[1753742865912,0.54522654,183.08,183.05,7.09528587]
[1753742866328,0.54522654,183.08,183.06,7.09528587]
[1753742866638,0.28432314,183.1,183.07,7.09528587]
[1753742866807,1.21522654,183.09,183.05,7.09528587]
[1753742867343,6.6765134,183.11,183.06,7.09528587]
[1753742867649,0.54522654,183.11,183.08,7.09528587]
[1753742867855,149.03,183.12,183.09,7.09528587]
[1753742868149,0.03,183.12,183.11,7.09528587]
[1753742868318,0.03,183.12,183.11,7.22528587]
[1753742868511,0.03,183.12,183.11,7.09528587]
[1753742869616,0.03,183.12,183.11,13.23260386]
[1753742869928,0.03,183.12,183.11,7.77140568]
[1753742870841,0.03,183.12,183.11,7.09528587]
[1753742871761,0.7,183.12,183.07,65.4]
[1753742871962,0.54522654,183.11,183.08,7.09528587]
[1753742872242,0.67,183.11,183.08,7.09528587]
[1753742872456,1.21522654,183.11,183.08,7.09528587]
[1753742872751,0.03,183.12,183.09,7.09528587]
[1753742872752,0.57522654,183.12,183.09,7.09528587]
[1753742872916,0.03,183.12,183.1,7.09528587]
[1753742873549,0.03,183.12,183.11,7.09528587]
[1753742875126,0.03,183.12,183.11,12.68648405]
[1753742876055,0.03,183.12,183.11,7.09528587]
[1753742877828,0.03,183.12,183.11,7.22528587]
[1753742878536,0.03,183.12,183.11,7.09528587]
[1753742878755,0.03,183.12,183.11,46.49528587]
[1753742879649,0.03,183.12,183.11,52.08648405]
[1753742880361,0.03,183.12,183.11,46.49528587]
[1753742880663,0.03,183.12,183.11,51.95648405]
[1753742880837,0.03,183.12,183.11,49.21314571]
[1753742881155,0.03,183.12,183.11,65.99782968]
[1753742881385,0.03,183.15,183.14,26.0]
[1753742881659,0.03,183.23,183.19,26.0]
[1753742881860,0.03,183.23,183.19,76.37572885]
[1753742882037,0.03,183.23,183.2,4.35194753]
[1753742882243,0.03,183.23,183.22,4.35194753]
[1753742882655,0.03,183.23,183.22,43.73194753]
[1753742882854,0.03,183.23,183.22,96.32649847]
[1753742883156,0.2,183.28,183.27,4.35194753]
[1753742883453,0.2,183.28,183.27,43.73194753]
[1753742884029,0.2,183.28,183.27,60.5166315]
[1753742884833,0.2,183.28,183.27,63.24283186]
[1753742885031,0.2,183.28,183.27,69.2449053]
[1753742885465,0.2,183.32,183.3,7.07814789]
[1753742885669,0.2,183.32,183.3,46.43814789]
[1753742888073,0.2,183.32,183.3,46.98370162]
[1753742888630,0.2,183.32,183.3,52.43923899]
[1753742890239,0.2,183.32,183.3,39.90555373]
[1753742890458,0.2,183.32,183.3,72.43814789]
[1753742890768,0.2,183.32,183.3,95.22392296]
[1753742890966,0.03,183.36,183.31,29.31797159]
[1753742891175,0.03,183.36,183.35,7.07814789]
[1753742891342,0.03,183.36,183.35,46.43814789]
[1753742891870,0.7,183.36,183.35,46.43814789]
[1753742892052,0.7,183.36,183.35,39.36]
[1753742892243,0.7,183.36,183.27,0.54564304]
[1753742892445,0.28432314,183.35,183.26,0.54567281]
[1753742892669,1.21522654,183.34,183.31,7.07814789]
[1753742892853,0.67,183.33,183.3,7.07814789]
[1753742893066,6.12489276,183.33,183.3,7.07814789]
[1753742893266,1.21522654,183.32,183.29,39.36]
[1753742893574,0.67,183.31,183.28,7.07814789]
[1753742893991,0.67,183.31,183.29,7.07814789]
[1753742894184,0.67,183.31,183.28,7.07814789]
[1753742894690,0.54522654,183.32,183.29,7.07814789]
[1753742894989,0.67,183.3,183.29,7.07814789]
[1753742895585,0.67,183.32,183.29,7.07814789]
[1753742895794,0.67,183.31,183.29,7.07814789]
[1753742896103,0.67,183.31,183.3,7.07814789]
[1753742898086,6.12537679,183.31,183.28,7.07814789]
[1753742898269,0.7,183.3,183.28,7.07814789]
[1753742898464,0.7,183.29,183.28,7.07814789]
[1753742899189,6.15464462,183.33,183.28,7.07814789]
[1753742899386,0.7,183.32,183.3,7.07814789]
[1753742899571,0.7,183.31,183.3,7.07814789]
[1753742899772,0.7,183.31,183.29,7.07814789]
[1753742899973,5.99987116,183.33,183.29,7.07814789]
[1753742899974,0.7,183.3,183.29,7.07814789]
[1753742901808,6.15466138,183.33,183.29,7.07814789]
[1753742902011,0.7,183.32,183.3,7.07814789]
[1753742902809,5.45466138,183.33,183.3,7.07814789]
[1753742902997,0.7,183.31,183.3,7.07814789]
[1753742903312,0.7,183.31,183.27,39.36]
[1753742903490,0.7,183.3,183.29,7.07814789]
[1753742905916,7.62337443,183.34,183.29,7.07814789]
[1753742905917,5.99966614,183.34,183.29,7.07814789]
[1753742906217,0.7,183.33,183.31,7.07814789]
[1753742906394,7.62337443,183.32,183.27,39.34]
[1753742906590,0.7,183.31,183.27,46.41814789]
[1753742906994,0.7,183.31,183.28,7.07814789]
[1753742907531,0.7,183.3,183.28,7.07814789]
[1753742907697,5.45525113,183.31,183.27,46.41814789]
[1753742908019,0.7,183.29,183.26,0.06]
[1753742908707,6.15525113,183.31,183.27,7.07814789]
[1753742908902,5.45525113,183.31,183.27,4.34650593]
[1753742909086,0.7,183.3,183.27,4.34650593]
[1753742909409,0.7,183.29,183.27,4.34650593]
[1753742910116,0.7,183.29,183.26,0.06]
[1753742910320,0.7,183.29,183.27,4.34650593]
[1753742910529,27.24522654,183.32,183.28,4.34650593]
[1753742910695,26.7,183.32,183.29,4.34650593]
[1753742910896,26.0,183.32,183.29,4.34650593]
[1753742911124,0.7,183.31,183.29,4.34650593]
[1753742911617,8.3552,183.3,183.27,0.54564304]
[1753742911824,0.14216157,183.25,183.15,11.08670593]
[1753742912120,4.34650593,183.21,183.16,4.34650593]
[1753742912287,4.34650593,183.22,183.16,4.34650593]
[1753742912696,4.89173247,183.22,183.16,4.34650593]
[1753742913009,4.89173247,183.22,183.15,6.7402]
[1753742913010,4.34650593,183.2,183.15,11.08670593]
[1753742913517,5.04650593,183.2,183.15,11.08670593]
[1753742914223,4.4886675,183.23,183.17,4.34650593]
[1753742914393,4.34650593,183.23,183.17,4.34650593]
[1753742914600,11.04913693,183.24,183.18,43.68650593]
[1753742914895,13.24702206,183.24,183.18,46.4296176]
[1753742915814,7.63484414,183.26,183.21,7.0896176]
[1753742916123,6.15649844,183.27,183.21,7.0896176]
[1753742916124,6.70172498,183.27,183.23,7.0896176]
[1753742916494,1.24522654,183.27,183.23,7.0896176]
[1753742917005,1.24522654,183.27,183.24,7.0896176]
[1753742917924,5.45617034,183.28,183.24,7.0896176]
[1753742917925,0.54522654,183.28,183.26,7.0896176]
[1753742919003,0.68738811,183.29,183.26,7.0896176]
[1753742919203,0.68738811,183.29,183.28,7.0896176]
[1753742919204,0.54522654,183.29,183.28,7.0896176]
[1753742919404,0.54522654,183.29,183.27,7.0896176]
[1753742919624,0.28432314,183.27,183.23,39.34]
[1753742919847,12.83096666,183.25,183.2,7.0896176]
[1753742920014,12.83096666,183.25,183.21,7.0896176]
[1753742920015,1.24522654,183.24,183.21,7.0896176]
[1753742920330,1.24522654,183.24,183.22,7.0896176]
[1753742920635,0.7,183.26,183.23,7.0896176]
[1753742920929,0.54522654,183.27,183.24,7.0896176]
[1753742921104,0.54522654,183.29,183.26,7.0896176]
[1753742921302,0.54522654,183.29,183.28,7.0896176]
[1753742921939,1.24522654,183.29,183.28,7.0896176]
[1753742922633,0.54522654,183.29,183.28,7.0896176]
[1753742923727,0.03,183.3,183.28,7.7596176]
[1753742924030,0.03,183.3,183.29,47.0996176]
[1753742924224,0.03,183.3,183.29,52.55545261]
[1753742926414,0.03,183.3,183.29,51.88545261]
[1753742927233,0.03,183.36,183.29,92.24504014]
[1753742927428,0.03,183.36,183.35,7.0896176]
[1753742927611,0.03,183.36,183.35,46.4296176]
[1753742928032,0.03,183.36,183.35,51.88366723]
[1753742928208,0.03,183.36,183.35,46.4296176]
[1753742928711,0.03,183.36,183.35,51.88366723]
[1753742928926,0.03,183.36,183.35,52.60366723]
[1753742929816,0.03,183.36,183.35,59.69328483]
[1753742930233,0.03,183.38,183.35,59.69328483]
[1753742930530,0.03,183.38,183.37,14.1792352]
[1753742930838,0.03,183.38,183.37,46.4096176]
[1753742931214,0.03,183.38,183.37,7.0896176]
[1753742931545,0.03,183.38,183.37,46.4096176]
[1753742931744,0.03,183.38,183.37,54.76458067]
[1753742931929,0.03,183.38,183.37,60.21803543]
[1753742932245,0.03,183.38,183.37,77.0027194]
[1753742932831,0.03,183.4,183.37,77.0027194]
[1753742932832,0.03,183.4,183.39,26.0]
[1753742933037,0.67,183.48,183.39,33.6349036]
[1753742933235,0.67,183.48,183.41,7.0896176]
[1753742933466,0.67,183.48,183.41,7.63484414]
[1753742933820,0.67,183.48,183.41,8.35484414]
[1753742934056,0.67,183.48,183.41,13.80710955]
[1753742936149,0.2,183.49,183.41,30.59179352]
[1753742936352,0.2,183.49,183.44,26.0]
[1753742936657,0.2,183.49,183.48,7.0896176]
[1753742936835,0.2,183.49,183.48,46.3896176]
[1753742938153,0.87,183.49,183.48,46.3896176]
[1753742938325,0.2,183.49,183.48,46.3896176]
[1753742940265,0.87,183.49,183.48,46.3896176]
[1753742940440,0.2,183.49,183.48,46.3896176]
[1753742940763,0.87,183.49,183.48,46.3896176]
[1753742940975,0.2,183.49,183.48,46.3896176]
[1753742941179,0.2,183.49,183.48,52.38482143]
[1753742941338,0.2,183.49,183.48,60.19443903]
[1753742941538,0.2,183.49,183.48,54.74425373]
[1753742941762,0.2,183.49,183.48,46.3896176]
[1753742942145,0.2,183.49,183.48,51.8398029]
[1753742942469,0.2,183.49,183.48,46.3896176]
[1753742943151,0.2,183.49,183.48,7.0896176]
[1753742943461,0.2,183.49,183.48,54.72425373]
[1753742944041,0.2,183.51,183.5,26.0]
[1753742944268,0.2,183.51,183.48,6.5089]
[1753742944466,0.2,183.51,183.45,0.54510765]
[1753742944467,0.67,183.5,183.49,46.3696176]
[1753742944842,0.2,183.51,183.49,46.3696176]
[1753742945042,0.2,183.51,183.5,7.0896176]
[1753742945245,0.87,183.51,183.5,7.0896176]
[1753742946363,0.2,183.51,183.5,7.0896176]
[1753742948755,0.2,183.51,183.5,4.33539096]
[1753742949993,0.87,183.51,183.5,39.28]
[1753742950161,6.31929431,183.51,183.5,39.28]
[1753742950485,6.86452085,183.51,183.5,39.28]
[1753742951175,0.87,183.51,183.5,39.28]
[1753742951956,10.93900841,183.51,183.45,4.33539096]
[1753742952156,10.93900841,183.51,183.46,39.28]
[1753742952157,5.5506175,183.5,183.46,39.28]
[1753742952376,5.93361745,183.51,183.46,39.28]
[1753742952377,0.2,183.51,183.48,4.33539096]
[1753742952564,0.67,183.5,183.49,39.28]
[1753742952964,0.2,183.51,183.49,43.61539096]
[1753742953376,0.67,183.5,183.49,43.61539096]
[1753742953567,0.67,183.5,183.49,39.28]
[1753742953966,0.67,183.5,183.49,43.61539096]
[1753742954466,0.2,183.51,183.49,43.61539096]
[1753742954674,0.2,183.51,183.5,4.33539096]
[1753742954880,0.2,183.51,183.49,39.28]
[1753742954881,0.2,183.51,183.49,43.61539096]
[1753742955192,0.87,183.51,183.49,43.61539096]
[1753742955567,0.2,183.51,183.5,4.33539096]
[1753742956084,0.2,183.51,183.49,43.61539096]
[1753742957296,0.7,183.5,183.49,43.61539096]
[1753742957488,0.7,183.5,183.49,39.28]
[1753742957995,0.7,183.5,183.49,43.61539096]
[1753742958293,0.2,183.51,183.49,43.61539096]
[1753742958478,0.9,183.51,183.49,43.61539096]
[1753742958802,0.2,183.51,183.49,43.61539096]
[1753742958969,5.03539096,183.5,183.49,39.28]
[1753742959389,1.24522654,183.5,183.49,39.28]
[1753742959596,0.2,183.51,183.49,39.28]
[1753742959766,0.9,183.51,183.49,39.28]
[1753742960169,0.7,183.5,183.49,39.28]
[1753742960893,6.69481782,183.5,183.49,39.28]
[1753742961476,6.14959128,183.5,183.49,39.28]
[1753742961707,0.7,183.5,183.49,39.28]
[1753742962815,0.2,183.51,183.49,39.28]
[1753742962973,0.9,183.51,183.49,39.28]
[1753742963166,0.9,183.51,183.47,4.33539096]
[1753742963366,3.99628784,183.5,183.48,39.28]
[1753742963796,10.52995381,183.51,183.48,39.28]
[1753742963998,5.3197141,183.49,183.42,0.06]
[1753742964187,4.33539096,183.45,183.42,0.06]
[1753742964496,4.8806175,183.44,183.42,0.06]
[1753742964666,1.24522654,183.44,183.42,0.06]
[1753742964870,0.7,183.43,183.42,0.06]
[1753742965376,13.86798079,183.43,183.42,0.06]
[1753742965672,8.70304015,183.43,183.42,0.06]
[1753742966002,8.00307093,183.43,183.42,4.39539096]
[1753742966500,8.00307093,183.43,183.42,0.06]
[1753742966716,8.70307093,183.43,183.42,0.06]
[1753742968092,14.6999684,183.43,183.42,0.06]
[1753742968400,36.10436647,183.43,183.42,0.06]
[1753742968601,19.3196825,183.43,183.42,0.06]
[1753742968773,9.24829747,183.43,183.42,0.06]
[1753742968978,1.24522654,183.43,183.42,0.06]
[1753742969279,14.71938195,183.43,183.42,0.06]
[1753742969480,19.05477291,183.43,183.42,0.06]
[1753742970201,19.33909605,183.43,183.42,0.06]
[1753742970917,81.95328002,183.43,183.42,1e-08]
[1753742971083,86.28867098,183.43,183.42,1e-08]
[1753742971395,86.28867098,183.43,183.38,0.06]
[1753742971396,0.28432314,183.39,183.38,0.06]
[1753742971623,13.18742512,183.39,183.38,0.06]
[1753742971770,13.88742512,183.39,183.38,0.06]
[1753742973143,19.34028514,183.39,183.38,0.06]
[1753742976029,36.12496911,183.39,183.38,0.06]
[1753742978527,32.11233829,183.39,183.38,0.06]
[1753742979039,14.62765432,183.39,183.38,0.06]
[1753742979227,10.61780066,183.39,183.38,0.06]
[1753742980308,11.31780066,183.39,183.38,0.06]
[1753742980507,28.10248463,183.39,183.38,0.06]
[1753742980751,32.39968829,183.39,183.38,0.06]
[1753742981334,28.10248463,183.39,183.38,0.06]
[1753742982618,10.61780066,183.39,183.38,0.06]
[1753742985321,39.98,183.41,183.38,5.04539096]
[1753742985322,0.54522654,183.41,183.38,5.04539096]
[1753742985526,149.0,183.42,183.4,4.33539096]
[1753742985914,149.0,183.42,183.4,4.98539096]
[1753742986244,149.0,183.42,183.38,0.06]
[1753742986245,149.0,183.48,183.41,4.98539096]
[1753742986543,0.82954968,183.47,183.44,4.33539096]
[1753742986914,0.54522654,183.47,183.44,4.33539096]
[1753742987516,0.68738811,183.47,183.44,4.33539096]
[1753742987821,0.14216157,183.43,183.38,0.06]
[1753742988134,5.68277907,183.42,183.38,0.06]
[1753742988531,5.02277907,183.42,183.38,0.06]
[1753742988720,0.66,183.41,183.38,0.06]
[1753742988921,5.5406175,183.41,183.38,0.06]
[1753742989531,4.8806175,183.41,183.38,0.06]
[1753742990035,10.99291093,183.41,183.38,0.06]
[1753742990447,0.94432314,183.4,183.38,0.06]
[1753742990640,0.54522654,183.39,183.38,0.06]
[1753742991019,0.54522654,183.41,183.38,0.06]
[1753742993653,4.6197141,183.39,183.38,0.06]
[1753742993945,5.82494064,183.39,183.38,0.06]
[1753742994150,9.83558069,183.39,183.38,0.06]
[1753742995549,15.28844071,183.39,183.38,0.06]
[1753742996332,32.07606441,183.39,183.38,0.06]
[1753742996554,4.6197141,183.35,183.34,0.06]
[1753742997054,0.28432314,183.35,183.34,0.06]
[1753742997368,0.82954968,183.35,183.34,0.06]
[1753742997935,0.54522654,183.35,183.34,0.06]
[1753742998134,44.7335289,183.37,183.34,0.06]
[1753742998135,0.54522654,183.37,183.34,0.06]
[1753742998464,43.61539096,183.41,183.36,4.33539096]
[1753742998636,2.2172,183.42,183.36,4.33539096]
[1753742998637,4.56096248,183.4,183.36,4.99539096]
[1753742998837,0.54522654,183.4,183.36,4.99539096]
[1753743000358,4.01820626,183.39,183.37,4.99539096]
[1753743000652,0.54522654,183.42,183.38,4.99539096]
[1753743000860,4.01844163,183.41,183.38,4.99539096]
[1753743001446,4.01844163,183.41,183.38,4.33539096]
[1753743002643,4.01844163,183.41,183.37,4.33539096]
[1753743002844,4.01844163,183.41,183.37,4.99539096]
[1753743003055,4.01844163,183.41,183.4,4.33539096]
[1753743003238,6.6563983,183.45,183.4,4.33539096]
[1753743003439,4.33539096,183.41,183.34,0.06]
[1753743003738,153.68484919,183.44,183.34,0.06]
[1753743003739,4.33539096,183.39,183.34,0.06]
[1753743004138,0.66,183.39,183.34,0.06]
[1753743004356,4.8806175,183.4,183.35,4.99539096]
[1753743004562,0.54522654,183.4,183.36,4.33539096]
[1753743004758,0.82954968,183.41,183.36,4.99539096]
[1753743004960,4.02589778,183.4,183.37,4.33539096]
[1753743005133,4.02589778,183.4,183.38,4.33539096]
[1753743005338,0.54522654,183.41,183.37,4.33539096]
[1753743005559,4.02767955,183.4,183.37,4.33539096]
[1753743005766,4.02767955,183.4,183.38,4.33539096]
[1753743005946,4.02767955,183.4,183.37,4.33539096]
[1753743006341,0.66,183.41,183.37,4.33539096]
[1753743006542,4.02969328,183.4,183.38,0.66]
[1753743006761,0.69,183.46,183.38,0.66]
[1753743006762,6.14088384,183.46,183.39,4.33539096]
[1753743006963,4.03010461,183.43,183.41,4.33539096]
[1753743007139,0.54522654,183.45,183.41,4.33539096]
[1753743007344,4.03030877,183.44,183.41,4.33539096]
[1753743007652,4.03030877,183.44,183.41,4.99539096]
[1753743008175,4.03030877,183.44,183.36,65.26]
[1753743008378,9.85524941,183.43,183.38,4.33539096]
[1753743008545,4.69030877,183.42,183.38,4.33539096]
[1753743008868,0.66,183.42,183.39,4.33539096]
[1753743009274,0.66,183.42,183.38,4.33539096]
[1753743009578,1.48954968,183.41,183.36,4.33539096]
[1753743009766,8.37079707,183.4,183.35,4.33539096]
[1753743009947,0.66,183.39,183.35,4.33539096]
[1753743010147,5.5406175,183.39,183.34,30.39539096]
[1753743010448,4.99539096,183.39,183.34,30.39539096]
[1753743011367,0.66,183.39,183.35,4.33539096]
[1753743011741,0.82954968,183.41,183.37,4.33539096]
[1753743011961,4.03169795,183.4,183.37,4.33539096]
[1753743012164,4.03169795,183.4,183.37,4.99539096]
[1753743012466,4.03169795,183.4,183.38,4.99539096]
[1753743012670,0.03,183.4,183.39,4.33539096]
[1753743013082,0.03,183.4,183.39,4.99539096]
[1753743014851,0.03,183.4,183.39,4.33539096]
[1753743015465,0.69,183.4,183.38,4.33539096]
[1753743015672,0.03,183.4,183.39,4.33539096]
[1753743016448,0.03,183.4,183.39,5.05539096]
[1753743017369,0.03,183.4,183.39,10.50825098]
[1753743018969,0.03,183.4,183.39,12.58863698]
[1753743019174,0.03,183.4,183.39,40.10551191]
[1753743019679,0.03,183.4,183.39,35.77012095]
[1753743019876,0.03,183.4,183.39,40.10551191]
[1753743020060,0.03,183.44,183.43,4.33539096]
[1753743020257,0.03,183.44,183.43,43.57539096]
[1753743020462,0.03,183.44,183.43,44.29539096]
[1753743021269,0.03,183.44,183.43,49.74706189]
[1753743021586,0.03,183.46,183.44,16.78468397]
[1753743021770,0.03,183.5,183.47,26.0]
[1753743022101,0.03,183.5,183.49,4.33539096]
[1753743022660,0.03,183.5,183.49,5.05539096]
[1753743023380,0.03,183.5,183.49,4.33539096]
[1753743024275,0.74,183.5,183.48,43.55539096]
[1753743024476,0.71,183.49,183.48,43.55539096]
[1753743026895,0.03,183.5,183.48,43.55539096]
[1753743027195,0.03,183.5,183.49,5.60037978]
[1753743028082,0.03,183.5,183.49,4.88037978]
[1753743028892,0.03,183.5,183.49,11.05026805]
[1753743029096,0.03,183.53,183.52,26.0]
[1753743029388,0.03,183.53,183.52,70.10029069]
[1753743029596,0.03,183.53,183.52,70.82029069]
[1753743029805,0.03,183.53,183.52,69.55539096]
[1753743030871,0.74,183.53,183.52,43.55539096]
[1753743031296,0.03,183.53,183.52,43.55539096]
[1753743032182,0.03,183.53,183.52,39.22]
[1753743032399,0.74,183.53,183.52,39.22]
[1753743033203,0.74,183.53,183.51,4.33539096]
[1753743033204,0.28432314,183.52,183.45,4.33539096]
[1753743033378,4.33539096,183.5,183.46,39.2]
[1753743033702,4.33539096,183.48,183.46,39.2]
[1753743034002,1.25522654,183.47,183.46,39.2]
[1753743034168,11.04134438,183.47,183.42,4.33539096]
[1753743034374,4.33539096,183.43,183.38,4.33539096]
[1753743034597,0.54522654,183.42,183.39,39.2]
[1753743034796,0.71,183.41,183.37,4.33539096]
[1753743035098,4.33539096,183.38,183.34,0.06]
[1753743035274,4.33539096,183.35,183.34,0.06]
[1753743035608,5.04539096,183.35,183.34,0.06]
[1753743036384,11.04466713,183.35,183.34,0.06]
[1753743036678,11.32899027,183.35,183.34,0.06]
[1753743036882,14.0760947,183.35,183.34,0.06]
[1753743040288,65.2,183.39,183.34,0.06]
[1753743040289,0.28432314,183.36,183.34,0.06]
[1753743040599,0.54522654,183.37,183.34,0.06]
[1753743040809,1.25522654,183.39,183.36,7.08249539]
[1753743040992,0.54522654,183.38,183.35,7.08249539]
[1753743041188,0.71,183.38,183.35,7.08249539]
[1753743041504,0.54522654,183.39,183.35,7.08249539]
[1753743041803,0.54522654,183.4,183.37,7.08249539]
[1753743043287,0.68738811,183.41,183.37,7.08249539]
[1753743043490,1.53954968,183.41,183.37,7.08249539]
[1753743043695,0.82954968,183.41,183.37,7.08249539]
[1753743043898,6.99184378,183.41,183.37,7.08249539]
[1753743044100,1.53954968,183.41,183.37,7.08249539]
[1753743044307,1.39738811,183.41,183.37,7.08249539]
[1753743044501,6.13978528,183.41,183.34,0.06]
[1753743044706,8.07681853,183.4,183.35,7.08249539]
[1753743045006,1.25522654,183.39,183.36,7.08249539]
[1753743046204,0.54522654,183.39,183.36,7.08249539]
[1753743046416,0.54522654,183.4,183.37,7.08249539]
[1753743046628,0.82954968,183.41,183.38,7.08249539]
[1753743047213,0.68,183.42,183.39,7.08249539]
[1753743047428,0.54522654,183.42,183.39,7.08249539]
[1753743047784,6.28129258,183.43,183.36,0.7]
[1753743047986,14.04378797,183.43,183.39,7.08249539]
[1753743048212,0.68,183.42,183.39,7.08249539]
[1753743048719,0.82954968,183.43,183.39,7.08249539]
[1753743049016,0.68,183.42,183.39,7.08249539]
[1753743049333,0.54522654,183.41,183.38,7.08249539]
[1753743049495,1.22522654,183.42,183.38,7.08249539]
[1753743049896,0.68,183.41,183.38,7.08249539]
[1753743050194,7.36681853,183.39,183.34,7.14249539]
[1753743050402,1.22522654,183.38,183.34,7.14249539]
[1753743050601,0.68,183.37,183.34,0.06]
[1753743050808,1.22522654,183.37,183.34,0.06]
[1753743051202,1.22522654,183.37,183.34,7.14249539]
[1753743051794,0.68,183.37,183.34,7.14249539]
[1753743052201,6.13347071,183.37,183.34,7.14249539]
[1753743052828,0.68,183.37,183.34,7.14249539]
[1753743053194,6.13350199,183.37,183.34,7.14249539]
[1753743053394,0.68,183.37,183.34,0.06]
[1753743054318,5.45349698,183.37,183.34,0.06]
[1753743054510,0.68,183.36,183.34,0.06]
[1753743054716,6.13349698,183.37,183.34,0.06]
[1753743055295,0.68,183.37,183.34,0.06]
[1753743055494,6.13360987,183.37,183.34,0.06]
[1753743055717,6.67883641,183.37,183.34,0.06]
[1753743056310,7.08249539,183.35,183.34,0.06]
[1753743056527,7.91204507,183.35,183.34,0.06]
[1753743056697,8.59204507,183.35,183.34,0.06]
[1753743058125,14.0460947,183.35,183.34,0.06]
[1753743059528,30.83077867,183.35,183.34,0.06]
[1753743061527,0.54522654,183.36,183.34,7.14249539]